fUST/lending_fUST_20250128
["ID","MTS","AMOUNT","RATE_DAILY","PERIOD"]
[350654579,1738033835395,-500.0,0.00019579,2]
[350654580,1738033835404,-500.0,0.0001958,2]
[350654581,1738033835414,-500.0,0.00019581,2]
[350654582,1738033835423,-500.0,0.00019684,2]
[350654583,1738033835432,-500.0,0.00019684,2]
[350654584,1738033835444,-1926.85,0.00019685,2]
[350654585,1738033835454,-597.48,0.00019685,2]
[350654586,1738033835463,-738.52747,0.00019685,2]
[350654587,1738033835473,-738.52747,0.00019685,2]
[350654588,1738033835482,-835.978687,0.00019685,2]
[350654589,1738033835493,-835.978687,0.00019685,2]
[350654590,1738033835502,-500.0,0.00019716,2]
[350654591,1738033835511,-500.0,0.00019716,2]
[350654592,1738033835522,-151.0,0.00019716,2]
[350654593,1738033835532,-151.0,0.00019716,2]
[350654594,1738033835541,-151.0,0.00019716,2]
[350654595,1738033835550,-151.0,0.00019716,2]
[350654596,1738033835560,-167.473071,0.00019716,2]
[350654597,1738033835569,-167.473071,0.00019716,2]
[350654598,1738033835578,-151.0,0.00019716,2]
[350654599,1738033835587,-151.0,0.00019716,2]
[350654600,1738033835596,-151.0,0.00019716,2]
[350654601,1738033835605,-509.76875272,0.00019716,2]
[350654602,1738033835711,-416.7259146,0.00019716,2]
[350654603,1738033835721,-557.69057429,0.00019717,2]
[350654604,1738033835731,-500.0,0.00019821,2]
[350654605,1738033835740,-500.0,0.00019821,2]
[350654606,1738033835749,-1926.85,0.00019822,2]
[350654607,1738033835759,-597.48,0.00019822,2]
[350654608,1738033835768,-493.94,0.00019853,2]
[350654609,1738033835777,-151.0,0.00019853,2]
[350654610,1738033835786,-151.0,0.00019853,2]
[350654611,1738033835795,-151.0,0.00019854,2]
[350654612,1738033835804,-151.0,0.00019854,2]
[350654613,1738033835814,-151.0,0.00019854,2]
[350654614,1738033835823,-151.0,0.00019854,2]
[350654615,1738033835832,-151.0,0.00019854,2]
[350654616,1738033835842,-151.0,0.00019854,2]
[350654617,1738033835851,-254.12441688,0.00019958,2]
[350654618,1738033835861,-500.0,0.00019958,2]
[350654619,1738033835870,-1926.85,0.00019959,2]
[350654620,1738033835879,-597.48,0.00019959,2]
[350654621,1738033835888,-390.396434,0.0001999,2]
[350654622,1738033835898,-390.396434,0.0001999,2]
[350654623,1738033835907,-151.260301,0.0001999,2]
[350654624,1738033835916,-293.394614,0.0001999,2]
[350654625,1738033835925,-293.394614,0.0001999,2]
[350654626,1738033835934,-189.051764,0.0001999,2]
[350654627,1738033835944,-2936.0,0.0002,2]
[350654628,1738033835953,-442.86071824,0.00020095,2]
[350654629,1738033835963,-1926.85,0.00020096,2]
[350654630,1738033835972,-597.48,0.00020096,2]
[350654631,1738033835981,-1926.85,0.00020233,2]
[350654632,1738033835991,-597.48,0.00020233,2]
[350654633,1738033836000,-154.064207,0.00020264,2]
[350654634,1738033836010,-151.0,0.00020264,2]
[350654635,1738033836020,-151.0,0.00020264,2]
[350654636,1738033836029,-151.0,0.00020264,2]
[350654637,1738033836039,-151.0,0.00020264,2]
[350654638,1738033836049,-504.77945453,0.00020283,2]
[350654639,1738033836058,-310.293085,0.00020301,2]
[350654640,1738033836067,-1926.85,0.0002037,2]
[350654641,1738033836077,-597.48,0.0002037,2]
[350654642,1738033836086,-151.0,0.00020401,2]
[350654643,1738033836096,-151.0,0.00020401,2]
[350654644,1738033836105,-151.0,0.00020401,2]
[350654645,1738033836114,-151.0,0.00020401,2]
[350654646,1738033836124,-167.473071,0.00020401,2]
[350654647,1738033836133,-167.473071,0.00020401,2]
[350654648,1738033836142,-151.0,0.00020401,2]
[350654649,1738033836151,-151.0,0.00020401,2]
[350654650,1738033836161,-151.0,0.00020401,2]
[350654651,1738033836170,-1926.85,0.00020507,2]
[350654652,1738033836179,-597.48,0.00020507,2]
[350654653,1738033836189,-499.0,0.00020547,2]
[350654654,1738033836198,-1926.85,0.00020644,2]
[350654655,1738033836208,-597.48,0.00020644,2]
[350654656,1738033836217,-738.52747,0.00020649,2]
[350654657,1738033836227,-738.52747,0.00020649,2]
[350654658,1738033836235,-835.978687,0.00020649,2]
[350654659,1738033836246,-835.978687,0.00020649,2]
[350654660,1738033836257,-151.0,0.00020675,2]
[350654661,1738033836267,-151.0,0.00020675,2]
[350654662,1738033836276,-151.0,0.00020675,2]
[350654663,1738033836285,-151.0,0.00020675,2]
[350654664,1738033836295,-151.0,0.00020675,2]
[350654665,1738033836304,-151.0,0.00020675,2]
[350654666,1738033836314,-10938.46183397,0.00020694,2]
[350654667,1738033836324,-1926.85,0.00020781,2]
[350654668,1738033836333,-597.48,0.00020781,2]
[350654669,1738033836342,-151.0,0.00020781,2]
[350654670,1738033836352,-151.0,0.00020781,2]
[350654671,1738033836361,-663.84,0.00020801,3]
[350654672,1738033836370,-331.92,0.00020801,3]
[350654673,1738033836379,-162.681545,0.00020807,2]
[350654674,1738033836389,-293.394614,0.00020812,2]
[350654675,1738033836398,-293.394614,0.00020812,2]
[350654676,1738033836407,-354.0685108,0.00020849,2]
[350654677,1738033836416,-1926.85,0.00020918,2]
[350654678,1738033836426,-597.48,0.00020918,2]
[350654679,1738033836435,-151.0,0.00020949,2]
[350654680,1738033836447,-223.834064,0.00020949,2]
[350654681,1738033836456,-151.0,0.00020949,2]
[350654682,1738033836466,-151.0,0.00020949,2]
[350654683,1738033836476,-151.0,0.00020949,2]
[350654684,1738033836486,-390.396434,0.00020949,2]
[350654685,1738033836496,-390.396434,0.00020949,2]
[350654686,1738033836507,-3000.0,0.00021,2]
[350654687,1738033836517,-1925.40752754,0.0002101,2]
[350654688,1738033836534,-1074.59247246,0.0002101,2]
[350654689,1738033836544,-151.0,0.0002101,2]
[350654690,1738033836553,-151.0,0.0002101,2]
[350654691,1738033836562,-3000.0,0.0002102,2]
[350654692,1738033836571,-170.328341,0.0002102,2]
[350654693,1738033836581,-3000.0,0.0002103,2]
[350654694,1738033836590,-151.519,0.00021033,2]
[350654695,1738033836601,-2095.969,0.00021033,2]
[350654696,1738033836610,-537.0,0.00021033,2]
[350654697,1738033836619,-2316.014,0.00021033,2]
[350654698,1738033836628,-151.0,0.00021033,2]
[350654699,1738033836637,-151.0,0.00021033,2]
[350654700,1738033836646,-231.924004,0.00021033,2]
[350654701,1738033836655,-167.473071,0.00021033,2]
[350654702,1738033836665,-167.473071,0.00021033,2]
[350654703,1738033836674,-151.0,0.00021033,2]
[350654704,1738033836683,-151.0,0.00021033,2]
[350654705,1738033836692,-151.0,0.00021033,2]
[350654706,1738033836702,-151.0,0.00021033,2]
[350654707,1738033836711,-151.0,0.00021033,2]
[350654708,1738033836720,-151.0,0.00021033,2]
[350654709,1738033836730,-151.0,0.00021033,2]
[350654710,1738033836739,-151.0,0.00021033,2]
[350654711,1738033836748,-151.0,0.00021033,2]
[350654712,1738033836760,-738.52747,0.00021033,2]
[350654713,1738033836770,-738.52747,0.00021033,2]
[350654714,1738033836779,-835.978687,0.00021033,2]
[350654715,1738033836789,-835.978687,0.00021033,2]
[350654716,1738033836799,-3000.0,0.0002104,2]
[350654717,1738033836809,-3000.0,0.0002105,2]
[350654718,1738033836818,-151.472589,0.0002105,2]
[350654719,1738033836828,-151.0,0.0002105,2]
[350654720,1738033836838,-151.0,0.0002105,2]
[350654721,1738033836847,-1926.85,0.00021055,2]
[350654722,1738033836856,-597.48,0.00021055,2]
[350654723,1738033836868,-151.0,0.00021055,2]
[350654724,1738033836877,-501.45187806,0.00021056,2]
[350654725,1738033836886,-3000.0,0.0002106,2]
[350654726,1738033836896,-151.0,0.0002106,2]
[350654727,1738033836906,-293.394614,0.0002106,2]
[350654728,1738033836916,-293.394614,0.0002106,2]
[350654729,1738033836925,-3000.0,0.0002107,2]
[350654730,1738033836938,-151.0,0.0002107,2]
[350654731,1738033836947,-151.0,0.0002107,2]
[350654732,1738033836957,-151.0,0.0002107,2]
[350654733,1738033836968,-390.396434,0.0002107,2]
[350654734,1738033836979,-390.396434,0.0002107,2]
[350654735,1738033836988,-3000.0,0.0002108,2]
[350654736,1738033836999,-151.0,0.00021087,2]
[350654737,1738033837011,-151.0,0.00021087,2]
[350654738,1738033837021,-3000.0,0.0002109,2]
[350654739,1738033837032,-3000.0,0.000211,2]
[350654740,1738033837042,-2120.93393558,0.0002111,2]
[350654741,1738033837056,-302.0,0.0002111,2]
[350654750,1738033838416,-500.0,0.00018451,2]
[350654751,1738033838426,-507.88561063,0.00018451,2]
[350654752,1738033838436,-500.0,0.00018451,2]
[350654753,1738033838448,-500.0,0.00018588,2]
[350654754,1738033838458,-531.56870647,0.00018588,2]
[350654755,1738033838467,-512.75317175,0.00018588,2]
[350654756,1738033838478,-500.0,0.00018588,2]
[350654757,1738033838488,-1212.18590641,0.00018588,2]
[350654758,1738033838498,-500.0,0.00018588,2]
[350654759,1738033838510,-500.0,0.00018588,2]
[350654760,1738033838523,-1212.18590641,0.00018588,2]
[350654761,1738033838533,-1212.18590641,0.00018588,2]
[350654762,1738033838543,-1212.18590641,0.00018588,2]
[350654763,1738033838553,-500.0,0.00018588,2]
[350654764,1738033838563,-1212.18590641,0.00018588,2]
[350654765,1738033838573,-291.41719084,0.00018588,2]
[350654766,1738033838583,-1212.18590641,0.00018588,2]
[350654767,1738033838592,-500.0,0.00018588,2]
[350654768,1738033838603,-1212.18590641,0.00018588,2]
[350654769,1738033838612,-1212.18590641,0.00018588,2]
[350654770,1738033838622,-500.0,0.00018588,2]
[350654771,1738033838631,-1212.18590641,0.00018588,2]
[350654772,1738033838730,-1212.18590641,0.00018588,2]
[350654773,1738033838740,-1212.18590641,0.00018588,2]
[350654774,1738033838749,-1212.18590641,0.00018588,2]
[350654775,1738033838760,-1212.18590641,0.00018588,2]
[350654776,1738033838769,-1212.18590641,0.00018588,2]
[350654777,1738033838779,-1212.18590641,0.00018588,2]
[350654778,1738033838788,-500.0,0.00018588,2]
[350654779,1738033838797,-1212.18590641,0.00018588,2]
[350654780,1738033838807,-1212.18590641,0.00018588,2]
[350654781,1738033838816,-1212.18590641,0.00018588,2]
[350654782,1738033838825,-1212.18590641,0.00018588,2]
[350654783,1738033838834,-1212.18590641,0.00018588,2]
[350654784,1738033838843,-1212.18590641,0.00018588,2]
[350654785,1738033838852,-1212.18590641,0.00018588,2]
[350654786,1738033838861,-1212.18590641,0.00018588,2]
[350654787,1738033838870,-1212.18590641,0.00018588,2]
[350654788,1738033838879,-1212.18590641,0.00018588,2]
[350654789,1738033838889,-1212.18590641,0.00018588,2]
[350654790,1738033838898,-1212.18590641,0.00018588,2]
[350654791,1738033838907,-1212.18590641,0.00018588,2]
[350654792,1738033838916,-1212.18590641,0.00018588,2]
[350654793,1738033838926,-1212.18590641,0.00018588,2]
[350654794,1738033838935,-1212.18590641,0.00018588,2]
[350654795,1738033838944,-1212.18590641,0.00018588,2]
[350654796,1738033838953,-1212.18590641,0.00018588,2]
[350654797,1738033838963,-1212.18590641,0.00018588,2]
[350654798,1738033838972,-1212.18590641,0.00018588,2]
[350654799,1738033838982,-1212.18590641,0.00018588,2]
[350654800,1738033838992,-1212.18590641,0.00018588,2]
[350654801,1738033839001,-1212.18590641,0.00018588,2]
[350654802,1738033839011,-1212.18590641,0.00018588,2]
[350654803,1738033839020,-1212.18590641,0.00018588,2]
[350654804,1738033839030,-1212.18590641,0.00018588,2]
[350654805,1738033839040,-1212.18590641,0.00018588,2]
[350654806,1738033839050,-1212.18590641,0.00018588,2]
[350654807,1738033839059,-1212.18590641,0.00018588,2]
[350654808,1738033839068,-1212.18590641,0.00018588,2]
[350654809,1738033839078,-1212.18590641,0.00018588,2]
[350654810,1738033839088,-1212.18590641,0.00018588,2]
[350654811,1738033839098,-1212.18590641,0.00018588,2]
[350654812,1738033839107,-1212.18590641,0.00018588,2]
[350654813,1738033839117,-1212.18590641,0.00018588,2]
[350654814,1738033839126,-1212.18590641,0.00018588,2]
[350654815,1738033839135,-1212.18590641,0.00018588,2]
[350654816,1738033839145,-1212.18590641,0.00018588,2]
[350654817,1738033839154,-1212.18590641,0.00018588,2]
[350654818,1738033839165,-1212.18590641,0.00018588,2]
[350654819,1738033839174,-1212.18590641,0.00018588,2]
[350654820,1738033839184,-500.0,0.00018725,2]
[350654821,1738033839194,-151.0,0.0001944,2]
[350654822,1738033839203,-151.0,0.0001944,2]
[350654823,1738033839213,-151.0,0.0001944,2]
[350654824,1738033839222,-151.0,0.0001944,2]
[350654825,1738033839232,-216.794034,0.0001944,2]
[350654826,1738033839241,-151.0,0.00019442,2]
[350654827,1738033839254,-504.47730245,0.00019442,2]
[350654828,1738033839263,-502.90661706,0.00019442,2]
[350654829,1738033839272,-151.0,0.00019853,2]
[350654830,1738033839282,-151.0,0.00020781,2]
[350654831,1738033839291,-151.0,0.00021055,2]
[350654832,1738033839300,-151.0,0.00021055,2]
[350654833,1738033839310,-577.06606442,0.0002111,2]
[350654834,1738033839319,-500.0,0.00021111,2]
[350654835,1738033839330,-151.0,0.00021111,2]
[350654836,1738033839339,-151.0,0.00021111,2]
[350654837,1738033839348,-151.0,0.00021111,2]
[350654838,1738033839358,-151.0,0.00021111,2]
[350654839,1738033839368,-151.0,0.00021111,2]
[350654840,1738033839377,-151.0,0.00021111,2]
[350654841,1738033839387,-738.52747,0.00021111,2]
[350654842,1738033839396,-738.52747,0.00021111,2]
[350654843,1738033839405,-835.978687,0.00021111,2]
[350654844,1738033839415,-835.978687,0.00021111,2]
[350654845,1738033839424,-2416.07104003,0.0002112,2]
[350654846,1738033839442,-517.1691499,0.0002112,2]
[350654847,1738033839460,-66.75981007,0.0002112,2]
[350654848,1738033839469,-151.0,0.0002112,2]
[350654849,1738033839478,-151.0,0.0002112,2]
[350654850,1738033839489,-167.473071,0.0002112,2]
[350654851,1738033839498,-167.473071,0.0002112,2]
[350654852,1738033839507,-151.0,0.0002112,2]
[350654853,1738033839517,-151.0,0.0002112,2]
[350654854,1738033839527,-151.0,0.0002112,2]
[350654855,1738033839536,-485.16176651,0.0002113,2]
[350654856,1738033839548,-2514.83823349,0.0002113,2]
[350654857,1738033839557,-3000.0,0.0002114,2]
[350654858,1738033839567,-151.0,0.0002114,2]
[350654859,1738033839576,-3000.0,0.0002115,2]
[350654860,1738033839585,-3000.0,0.0002116,2]
[350654861,1738033839595,-390.396434,0.0002116,2]
[350654862,1738033839604,-390.396434,0.0002116,2]
[350654863,1738033839614,-293.394614,0.0002116,2]
[350654864,1738033839623,-293.394614,0.0002116,2]
[350654865,1738033839633,-151.0,0.0002116,2]
[350654866,1738033839643,-151.0,0.0002116,2]
[350654867,1738033839652,-151.0,0.0002116,2]
[350654868,1738033839662,-609.86302147,0.0002117,2]
[350654869,1738033839734,-2390.13697853,0.0002117,2]
[350654870,1738033839743,-122.20030242,0.0002117,2]
[350654927,1738033840679,-513.74549901,0.00018451,2]
[350654929,1738033840689,-151.0,0.0001944,2]
[350654931,1738033840699,-151.0,0.0001944,2]
[350654933,1738033840708,-151.0,0.0001944,2]
[350654935,1738033840717,-21.73450099,0.00019442,2]
[350654971,1738033843514,-500.0,0.0001827,2]
[350654972,1738033843524,-151.0,0.00018451,2]
[350654973,1738033843567,-349.0,0.00018451,2]
[350654974,1738033843576,-466.0,0.00018451,2]
[350655007,1738033846595,-45.1380657,0.00018451,2]
[350655008,1738033846605,-510.448785,0.00018451,2]
[350655009,1738033846614,-151.0,0.0001944,2]
[350655010,1738033846624,-151.0,0.0001944,2]
[350655011,1738033846634,-151.0,0.0001944,2]
[350655012,1738033846643,-129.26549901,0.00019442,2]
[350655013,1738033846653,-505.43297143,0.00019442,2]
[350655014,1738033846663,-151.0,0.00019442,2]
[350655015,1738033846672,-151.0,0.00019853,2]
[350655016,1738033846681,-151.0,0.00019853,2]
[350655017,1738033846691,-151.0,0.00020781,2]
[350655018,1738033846701,-152.86576,0.00020781,2]
[350655019,1738033846711,-184.699613,0.00021055,2]
[350655020,1738033846721,-28.79969758,0.0002117,2]
[350655021,1738033846730,-151.0,0.0002117,2]
[350655022,1738033846740,-3000.0,0.0002118,2]
[350655023,1738033846749,-2480.41800921,0.0002119,2]
[350655024,1738033846761,-519.58199079,0.0002119,2]
[350655025,1738033846772,-151.0,0.0002119,2]
[350655026,1738033846781,-178.197296,0.0002119,2]
[350655027,1738033846791,-1926.85,0.00021192,2]
[350655028,1738033846801,-597.48,0.00021192,2]
[350655029,1738033846811,-501.08253739,0.000212,2]
[350655030,1738033846821,-500.0,0.000212,2]
[350655031,1738033846831,-447.87000314,0.000212,2]
[350655032,1738033846843,-2552.12999686,0.000212,2]
[350655033,1738033846852,-3000.0,0.0002121,2]
[350655034,1738033846862,-738.52747,0.0002121,2]
[350655035,1738033846871,-738.52747,0.0002121,2]
[350655036,1738033846881,-835.978687,0.0002121,2]
[350655037,1738033846891,-835.978687,0.0002121,2]
[350655038,1738033846901,-3000.0,0.0002122,2]
[350655039,1738033846910,-151.0,0.0002122,2]
[350655040,1738033846920,-151.0,0.0002122,2]
[350655041,1738033846929,-151.0,0.0002122,2]
[350655042,1738033846939,-151.0,0.0002122,2]
[350655043,1738033846949,-151.0,0.0002122,2]
[350655044,1738033846959,-151.0,0.0002122,2]
[350655045,1738033846969,-151.0,0.00021223,2]
[350655046,1738033846979,-167.473071,0.00021223,2]
[350655047,1738033846988,-167.473071,0.00021223,2]
[350655048,1738033846998,-151.0,0.00021223,2]
[350655049,1738033847007,-151.0,0.00021223,2]
[350655050,1738033847017,-228.53797222,0.00021223,2]
[350655051,1738033847027,-3000.0,0.0002123,2]
[350655052,1738033847036,-3000.0,0.0002124,2]
[350655053,1738033847045,-151.0,0.0002124,2]
[350655054,1738033847055,-3000.0,0.0002125,2]
[350655055,1738033847064,-151.0,0.0002125,2]
[350655056,1738033847074,-5492.456355,0.0002126,2]
[350655057,1738033847083,-263.372501,0.0002126,2]
[350655058,1738033847092,-151.0,0.0002126,2]
[350655059,1738033847102,-390.396434,0.0002126,2]
[350655060,1738033847111,-390.396434,0.0002126,2]
[350655061,1738033847121,-293.394614,0.0002126,2]
[350655062,1738033847130,-293.394614,0.0002126,2]
[350655063,1738033847139,-151.0,0.0002126,2]
[350655064,1738033847150,-151.0,0.0002126,2]
[350655065,1738033847159,-151.0,0.0002126,2]
[350655066,1738033847169,-501.4724163,0.00021288,2]
[350655067,1738033847179,-979.40180914,0.00021311,30]
[350655068,1738033847189,-1926.85,0.00021329,2]
[350655069,1738033847199,-597.48,0.00021329,2]
[350655070,1738033847209,-395.0,0.00021385,2]
[350655071,1738033847219,-1926.85,0.00021466,2]
[350655072,1738033847228,-597.48,0.00021466,2]
[350655073,1738033847237,-151.0,0.00021497,2]
[350655074,1738033847247,-36916.59839469,0.00021534,3]
[350655075,1738033847256,-167.473071,0.00021534,2]
[350655076,1738033847266,-167.473071,0.00021534,2]
[350655077,1738033847275,-151.0,0.00021534,2]
[350655078,1738033847284,-151.0,0.00021534,2]
[350655079,1738033847293,-151.0,0.00021534,2]
[350655080,1738033847303,-151.0,0.00021534,2]
[350655081,1738033847313,-151.0,0.00021534,2]
[350655082,1738033847323,-151.0,0.00021534,2]
[350655083,1738033847332,-151.0,0.00021534,2]
[350655084,1738033847342,-151.0,0.00021534,2]
[350655085,1738033847352,-738.52747,0.00021534,2]
[350655086,1738033847362,-738.52747,0.00021534,2]
[350655087,1738033847372,-835.978687,0.00021534,2]
[350655088,1738033847382,-835.978687,0.00021534,2]
[350655089,1738033847392,-151.0,0.00021534,2]
[350655090,1738033847487,-151.0,0.00021534,2]
[350655091,1738033847499,-151.0,0.00021534,2]
[350655092,1738033847512,-160.0,0.00021565,3]
[350655093,1738033847522,-2936.0,0.000216,4]
[350655094,1738033847532,-198.35,0.000216,2]
[350655095,1738033847543,-1927.0044,0.00021603,2]
[350655096,1738033847552,-597.60141557,0.00021603,2]
[350655097,1738033847562,-1000.0,0.00021748,2]
[350655098,1738033847572,-709.7295004,0.00021781,2]
[350655099,1738033847581,-211.130354,0.00021908,2]
[350655100,1738033847590,-506.58382422,0.00021917,2]
[350655101,1738033847600,-499.0,0.00021917,4]
[350655102,1738033847610,-255.5,0.00021995,15]
[350655103,1738033847620,-10448.78006285,0.00022,2]
[350655104,1738033847632,-347.0,0.00022,2]
[350655105,1738033847647,-894.242857,0.00022,2]
[350655106,1738033847659,-12750.75743237,0.00022,2]
[350655107,1738033847668,-151.0,0.00022,7]
[350655108,1738033847677,-151.0,0.00022,7]
[350655109,1738033847686,-151.0,0.00022,7]
[350655110,1738033847695,-151.0,0.00022,7]
[350655111,1738033847705,-390.396434,0.00022,7]
[350655112,1738033847715,-390.396434,0.00022,7]
[350655113,1738033847724,-293.394614,0.00022,7]
[350655114,1738033847733,-190.28019261,0.00022,7]
[350655118,1738034502117,158.279313,0.00013973,2]
[350655121,1738034845137,-542.3952548,0.00016439,2]
[350655122,1738034845159,-1767.93969926,0.00016447,2]
[350655123,1738034845189,-2869.90690398,0.00016447,2]
[350655124,1738034845210,-154.78330338,0.00016447,2]
[350655125,1738034845230,-1810.7604671,0.00016613,2]
[350655126,1738034845250,-159.39510433,0.00017269,2]
[350655127,1738034845271,-223.437441,0.00017327,2]
[350655128,1738034845292,-412.62162637,0.00017473,2]
[350655129,1738034845313,-195.26180775,0.00017473,2]
[350655130,1738034845335,-265.75418225,0.00017478,2]
[350655131,1738034848217,-34.24581775,0.00017478,2]
[350655132,1738034848239,-176.97980051,0.00017479,2]
[350655133,1738034848262,-500.0,0.00017479,2]
[350655134,1738034848289,-533.36179882,0.00017479,2]
[350655135,1738034848310,-421.26857676,0.00017479,2]
[350655136,1738034848338,-533.36179882,0.00017479,2]
[350655137,1738034848365,-533.36179882,0.00017479,2]
[350655138,1738034848392,-533.36179882,0.00017479,2]
[350655139,1738034848421,-533.36179882,0.00017479,2]
[350655140,1738034848446,-533.36179882,0.00017479,2]
[350655141,1738034848471,-533.36179882,0.00017479,2]
[350655142,1738034848496,-533.36179882,0.00017479,2]
[350655143,1738034848521,-533.36179882,0.00017479,2]
[350655144,1738034848546,-533.36179882,0.00017479,2]
[350655145,1738034848570,-533.36179882,0.00017479,2]
[350655146,1738034848595,-533.36179882,0.00017479,2]
[350655147,1738034848619,-533.36179882,0.00017479,2]
[350655148,1738034848643,-533.36179882,0.00017479,2]
[350655149,1738034848668,-533.36179882,0.00017479,2]
[350655150,1738034848692,-533.36179882,0.00017479,2]
[350655151,1738034848716,-533.36179882,0.00017479,2]
[350655152,1738034848739,-533.36179882,0.00017479,2]
[350655153,1738034848894,-533.36179882,0.00017479,2]
[350655154,1738034848921,-533.36179882,0.00017479,2]
[350655155,1738034848949,-533.36179882,0.00017479,2]
[350655156,1738034848977,-533.36179882,0.00017479,2]
[350655157,1738034849003,-533.36179882,0.00017479,2]
[350655158,1738034849030,-533.36179882,0.00017479,2]
[350655159,1738034849056,-533.36179882,0.00017479,2]
[350655160,1738034849082,-533.36179882,0.00017479,2]
[350655161,1738034849109,-470.25615438,0.00017479,2]
[350655234,1738035032805,-300.0,0.00016479,2]
[350655235,1738035032814,-500.0,0.0001648,2]
[350655236,1738035032823,-500.0,0.0001648,2]
[350655237,1738035032836,-500.0,0.0001648,2]
[350655238,1738035032845,-634.76761721,0.0001648,2]
[350655239,1738035032854,-500.0,0.0001648,2]
[350655240,1738035032863,-500.0,0.0001648,2]
[350655241,1738035032873,-500.0,0.0001648,2]
[350655242,1738035032882,-522.22687412,0.0001648,2]
[350655243,1738035032891,-500.0,0.0001648,2]
[350655244,1738035032901,-348.26354337,0.0001648,2]
[350655245,1738035032910,-2670.43556525,0.00016481,2]
[350655247,1738035032922,-22229.56443475,0.00016481,2]
[350655249,1738035032931,-500.0,0.00016617,2]
[350655251,1738035032940,-500.0,0.00016617,2]
[350655253,1738035032949,-500.0,0.00016617,2]
[350655272,1738035033073,-500.0,0.00016617,2]
[350655275,1738035033085,-500.5151639,0.00016754,2]
[350655278,1738035033095,-500.0,0.00016754,2]
[350655281,1738035033105,-500.0,0.00016754,2]
[350655285,1738035033115,-500.0,0.00016754,2]
[350655288,1738035033124,-500.0,0.00016891,2]
[350655291,1738035033134,-500.0,0.00016891,2]
[350655294,1738035033143,-500.0,0.00016891,2]
[350655297,1738035033152,-500.0,0.00017028,2]
[350655301,1738035033168,-500.0,0.00017028,2]
[350655304,1738035033178,-500.0,0.00017028,2]
[350655307,1738035033187,-500.0,0.00017165,2]
[350655310,1738035033197,-500.0,0.00017165,2]
[350655313,1738035033207,-500.0,0.00017165,2]
[350655316,1738035033216,-442.72699878,0.0001728,2]
[350655319,1738035033227,-500.0,0.00017302,2]
[350655322,1738035033237,-500.0,0.00017302,2]
[350655325,1738035033246,-500.0,0.00017302,2]
[350655328,1738035033255,-152.0,0.00017333,2]
[350655330,1738035033265,-219.37619585,0.00017379,2]
[350655332,1738035033275,-176.9798005,0.0001738,2]
[350655334,1738035033284,-500.0,0.00017439,2]
[350655336,1738035033293,-500.0,0.00017439,2]
[350655338,1738035033303,-500.0,0.00017439,2]
[350655340,1738035033311,-500.0,0.00017478,2]
[350655342,1738035033321,-500.0,0.00017478,2]
[350655344,1738035033330,-500.0,0.00017478,2]
[350655346,1738035033339,-500.0,0.00017478,2]
[350655348,1738035033348,-500.0,0.00017478,2]
[350655350,1738035033358,-500.0,0.00017478,2]
[350655352,1738035033368,-500.0,0.00017478,2]
[350655354,1738035033377,-500.0,0.00017478,2]
[350655356,1738035033387,-500.0,0.00017478,2]
[350655358,1738035033397,-500.0,0.00017478,2]
[350655360,1738035033406,-500.0,0.00017478,2]
[350655362,1738035033416,-500.0,0.00017478,2]
[350655364,1738035033425,-500.0,0.00017478,2]
[350655366,1738035033435,-500.0,0.00017478,2]
[350655368,1738035033444,-500.0,0.00017478,2]
[350655370,1738035033454,-500.0,0.00017478,2]
[350655372,1738035033464,-500.0,0.00017478,2]